Cogmind - Beta 14 @@@ ROGUE MODE // 2025.03.23 @ 15:25:10 Player: Folded_Phoenix Result: Destroyed by D-53 Grenadier with Mini Grenade Launcher Performance ------------- Evolutions (1) 500 Regions Visited (3) 600 Robots Destroyed (34) 170 Value Destroyed (889) 889 Prototype IDs (5) 100 Alien Tech Used (0) 0 Bonus (0) 0 TOTAL SCORE: 2259 Bonus ------- None Cogmind --------- Core Integrity 0/400 Matter 293/300 Energy 98/100 System Corruption 5% Temperature Cool (0) Movement Core (50) Location -9/Mines Parts ------- > --- POWER (1) -------- (None) > --- PROPULSION (2) --- (None) > --- UTILITY (4) ------ (None) > --- WEAPON (2) ------- (None) > --- INVENTORY (5) ---- Heavy Ion Engine Light Treads Particle Gun Advanced Beam Cannon Improved Assault Rifle Peak State ------------ > --- POWER ------------ Light Ion Engine > --- PROPULSION ------- Light Treads Light Treads > --- UTILITY ---------- Large Storage Unit Transport Network Coupler Targeting Computer Targeting Computer > --- WEAPON ----------- Advanced Beam Cannon Improved Assault Rifle > --- INVENTORY -------- Ion Engine Heavy Ion Engine Light Treads Light Treads Light Treads Improved Medium Laser Advanced Beam Cannon Improved Assault Rifle Improved Assault Rifle Grenade Launcher Welding Torch [Rating: 15] Favorites ----------- Power Light Ion Engine Engine Light Ion Engine Propulsion Light Treads Treads Light Treads Utility Targeting Computer Device Structural Scanner Storage Large Storage Unit Processor Targeting Computer Weapon Light Assault Rifle Energy Gun Particle Gun Energy Cannon Advanced Beam Cannon Ballistic Gun Light Assault Rifle Build | -11 -10 -9 -9 ------- Run | Yrd Mat Mat Min Slots Evolved 2 | . . 2 . Power . | . . . . Propulsion . | . . . . Utility 2 | . . 2 . Weapon . | . . . . Parts Attached 31 | 6 10 15 . Power 6 | 1 3 2 . Engine 6 | 1 3 2 . Core . | . . . . Reactor . | . . . . Propulsion 6 | 2 2 2 . Treads 6 | 2 2 2 . Leg . | . . . . Wheel . | . . . . Hover . | . . . . Flight . | . . . . Utility 8 | 1 2 5 . Device 1 | . 1 . . Storage 3 | 1 1 1 . Processor 4 | . . 4 . Hackware . | . . . . Protection . | . . . . Artifact . | . . . . Weapon 11 | 2 3 6 . Energy Gun 5 | . 2 3 . Energy Cannon 2 | . . 2 . Ballistic Gun 4 | 2 1 1 . Ballistic Cannon . | . . . . Launcher . | . . . . Special Weapon . | . . . . Impact Weapon . | . . . . Slashing Weapon . | . . . . Piercing Weapon . | . . . . Special Melee Weapon . | . . . . Unidentified Prototypes 5 | . . 5 . Parts Lost 8 | . 3 4 1 Power 3 | . 1 2 . Propulsion 2 | . 1 . 1 Utility 2 | . . 2 . Weapon 1 | . 1 . . Highest Loss Streak 2 | . 2 2 1 To Critical Strikes . | . . . . Average Slot Usage (%) 98 | . 99 97 99 Engine 12 | . 14 10 11 Treads 24 | . 27 22 21 Device 6 | . 13 . . Storage 12 | . 14 11 11 Processor 15 | . . 29 33 Energy Gun 8 | . 9 10 . Energy Cannon 2 | . . 3 11 Ballistic Gun 13 | . 19 7 11 Peak Build Rating 15 | 6 9 15 14 Average Rating 9 | 4 7 12 13 On Entrance 7 | . 6 9 14 Naked Turns 2 | . . . 2 Heaviest Build 30 | 12 30 30 20 Greatest Support 40 | 40 40 40 40 Greatest Overweight (x) 3 | 3 . . . Average Overweight (x) . | . . . . Largest Inventory Capacity 15 | 8 15 15 10 Average Capacity 11 | 7 10 13 9 Most Carried 12 | . 11 12 9 Average Carried 5 | . 4 8 8 Final Capacity 15 | 8 15 10 5 Final Carried 11 | . 11 8 5 Class Distribution -------------------- 53% | Scavenger-Mutant 46% | Mutant Dominant Class ---------------- Mutant | -10/Materials Scavenger-Mutant | -9/Materials Scavenger-Mutant | -9/Mines Resources | -11 -10 -9 -9 ----------- Run | Yrd Mat Mat Min Matter Collected 739 | 218 200 290 31 Remotely . | . . . . Salvage Created 1192 | . 450 648 94 Parts 75 | . 30 40 5 Haulers Intercepted 4 | . 2 2 . Recyclers Shooed 2 | . 1 1 . Parts Field Recycled . | . . . . Retrieved Matter . | . . . . Parts Self-Destructed . | . . . . Prevented . | . . . . Kills | -11 -10 -9 -9 ------- Run | Yrd Mat Mat Min Combat Hostiles Destroyed 28 | . 10 16 2 Guns 22 | . 10 11 1 Cannons 6 | . . 5 1 Classes Destroyed 6 | . 3 3 . Builder 1 | . . 1 . Hauler 4 | . 2 2 . Watcher 1 | . . 1 . Swarmer 7 | . 3 4 . Grunt 20 | . 7 11 2 Sentry 1 | . . 1 . Best Kill Streak 7 | . 3 7 2 Combat Bots Only 7 | . 3 7 2 Max Kills in Single Turn 2 | . 1 2 1 Gunslinging 1 | . . 1 . Exploded . | . . . . Melee . | . . . . Uniques/NPCs Destroyed . | . . . . Combat | -11 -10 -9 -9 -------- Run | Yrd Mat Mat Min Hostile Shots Fired 172 | . 86 71 15 Missed 41 | . 22 19 . Damage Taken 1916 | . 715 831 370 Core 545 | . 144 316 85 Absorbed by Shields . | . . . . Core Remaining (%) 71 | 100 42 . . Volleys Fired 123 | . 57 60 6 Largest 2 | . 2 2 2 Hottest 105 | . 85 105 91 Shots Fired 240 | . 114 113 13 Gun 219 | . 114 99 6 Cannon 21 | . . 14 7 Launcher . | . . . . Special . | . . . . Kinetic 131 | . 96 29 6 Thermal 109 | . 18 84 7 Explosive . | . . . . Electromagnetic . | . . . . Robot Hit Streak 12 | . 12 10 11 Robot Miss Streak 3 | . 3 3 2 Penetration Max . | . . . . Secondary Targets 3 | . 1 2 . Max Gunslinging Chain 1 | . 1 1 . Shots Hit Robots 155 | . 72 74 9 Core Hits 60 | . 27 29 4 Critical Kills . | . . . . Critical Parts Destroyed 2 | . 1 1 . Critical Strikes 4 | . 1 3 . Burn 2 | . . 2 . Destroy 2 | . 1 1 . Melee Attacks . | . . . . Impact . | . . . . Slashing . | . . . . Piercing . | . . . . Sneak Attacks . | . . . . Combat Hostiles . | . . . . Follow-up Attacks . | . . . . Damage Inflicted 1934 | . 658 1129 147 Guns 1647 | . 658 924 65 Cannons 287 | . . 205 82 Explosions . | . . . . Melee . | . . . . Ramming . | . . . . Kinetic 789 | . 456 268 65 Thermal 1145 | . 202 861 82 Explosive . | . . . . Electromagnetic . | . . . . Impact . | . . . . Slashing . | . . . . Piercing . | . . . . Highest Corruption 5 | . . 5 5 Average Corruption 5 | . . 5 5 Corruption Purged . | . . . . Corruption Blocked . | . . . . Effects 7 | . . 3 4 Message Errors 1 | . . . 1 Matter Fused 2 | . . 1 1 Energy Discharges 1 | . . 1 . Data Loss (minor) 1 | . . . 1 Data Loss (major) 1 | . . 1 . Misfires 1 | . . . 1 Overload Shots . | . . . . Overflow Damage . | . . . . Projectiles . | . . . . Explosions . | . . . . Melee . | . . . . Knockbacks . | . . . . Impact . | . . . . Kinetic . | . . . . Secondary . | . . . . Self-Inflicted Damage . | . . . . Shots . | . . . . Rammed . | . . . . Targets Rammed 1 | . . 1 . Kicked . | . . . . Crushed 1 | . . 1 . Highest Temperature 600 | . 154 600 135 Average Temperature 125 | . 54 168 54 Received Heat Transfer 672 | . 321 300 51 Effects 17 | . . 17 . Shutdowns 4 | . . 4 . Energy Bleed 1 | . . 1 . Interference 4 | . . 4 . Matter Decay 1 | . . 1 . Damage (minor) 1 | . . 1 . Damage (major) 3 | . . 3 . Damage (core) 3 | . . 3 . Siege Activations . | . . . . Robots Corrupted . | . . . . Combat Hostiles . | . . . . Parts Fried . | . . . . Impact Corruptions . | . . . . Robots Melted . | . . . . Combat Hostiles . | . . . . Parts Melted 8 | . 1 6 1 Heat Transferred 2683 | . 481 2054 148 Parts Sabotaged . | . . . . Parts Stolen . | . . . . Parts Stripped . | . . . . Power Chain Reactions . | . . . . Alert | -11 -10 -9 -9 ------- Run | Yrd Mat Mat Min Peak Influence 309 | . 195 309 137 Initial 87 | . . 41 87 Average 131 | . 79 206 134 Maximum Alert Level 1 | . . 1 . Low Security (%) 74 | 100 100 33 100 Level 1 25 | . . 66 . Level 2 . | . . . . Level 3 . | . . . . Level 4 . | . . . . Level 5 . | . . . . High Security . | . . . . Max Security . | . . . . Squads Dispatched 2 | . 2 . . Investigation 1 | . 1 . . Extermination . | . . . . Reinforcement 1 | . 1 . . Assault . | . . . . Garrison . | . . . . Intercept . | . . . . Searches Triggered . | . . . . Construction Impeded . | . . . . Haulers Reinforced . | . . . . Active Scanning Responses . | . . . . Cargo Convoy Interrupts . | . . . . Stealth | -11 -10 -9 -9 --------- Run | Yrd Mat Mat Min Distress Signals 3 | . . 3 . Communications Jammed . | . . . . Distress Signals . | . . . . Times Spotted 44 | . 17 23 4 Peak Tracking Total 7 | . 4 7 2 Tactical Retreats 1 | . 1 . . Traps | -11 -10 -9 -9 ------- Run | Yrd Mat Mat Min Traps Triggered 1 | . 1 . . Indirectly . | . . . . Trap Hack Attempts . | . . . . Triggered . | . . . . Disarmed . | . . . . Reprogrammed . | . . . . Reused . | . . . . Traps Extracted . | . . . . Installed . | . . . . Triggered . | . . . . Machines | -11 -10 -9 -9 ---------- Run | Yrd Mat Mat Min Machines Disabled . | . . . . Max in Single Turn . | . . . . Machines Repaired . | . . . . Machines Dismantled . | . . . . Machines Sabotaged . | . . . . Overloaded Fab Kills . | . . . . Hacking | -11 -10 -9 -9 --------- Run | Yrd Mat Mat Min Machines Accessed 3 | . . 3 . Terminals 3 | . . 3 . Fabricators . | . . . . Repair Stations . | . . . . Recycling Units . | . . . . Scanalyzers . | . . . . Garrison Access . | . . . . Total Hacks 7 | . . 7 . Successful 2 | . . 2 . Failed 5 | . . 5 . Catastrophic 2 | . . 2 . Database Lockouts . | . . . . Manual . | . . . . Terminals 7 | . . 7 . Fabricators . | . . . . Repair Stations . | . . . . Recycling Units . | . . . . Scanalyzers . | . . . . Garrison Access . | . . . . Terminal Hacks 2 | . . 2 . Robot Analysis 1 | . . 1 . Maintenance Status 1 | . . 1 . Fabricator Hacks . | . . . . Repair Station Hacks . | . . . . Recycling Unit Hacks . | . . . . Scanalyzer . | . . . . Garrison Access Hacks . | . . . . Unauthorized Hacks . | . . . . Terminals . | . . . . Fabricators . | . . . . Repair Stations . | . . . . Recycling Units . | . . . . Scanalyzers . | . . . . Garrison Access . | . . . . Data Cores Recovered . | . . . . Used . | . . . . Hacking Detections 3 | . . 3 . Full Trace Events . | . . . . Feedback Events . | . . . . Feedback Blocked . | . . . . Robot Schematics Acquired . | . . . . Robots Built . | . . . . Authchips . | . . . . Time . | . . . . Total Robot Build Rating . | . . . . Part Schematics Acquired . | . . . . Parts Built . | . . . . Authchips . | . . . . Time . | . . . . Total Part Build Rating . | . . . . Parts Repaired . | . . . . Time . | . . . . Parts Recycled . | . . . . Recycled Matter . | . . . . Retrieved Matter . | . . . . Retrieved Components . | . . . . Parts Scanalyzed . | . . . . Part Schematics Acquired . | . . . . Parts Damaged . | . . . . Bothacking | -11 -10 -9 -9 ------------ Run | Yrd Mat Mat Min Used RIF Installer . | . . . . Robots Hacked . | . . . . Non-combat . | . . . . Combat . | . . . . Robot Hacks Applied . | . . . . Relay Couplers Released . | . . . . Fabnet Peak Effective % . | . . . . Robots Rewired . | . . . . Allies Hacked . | . . . . Hacks Repelled . | . . . . Allies | -11 -10 -9 -9 -------- Run | Yrd Mat Mat Min Total Allies . | . . . . Largest Group . | . . . . Highest-Rated Group . | . . . . Highest-Rated Ally . | . . . . Total Orders . | . . . . Ally Attacks . | . . . . Total Damage . | . . . . Kills . | . . . . Allies Corrupted . | . . . . Allies Melted . | . . . . Intel | -11 -10 -9 -9 ------- Run | Yrd Mat Mat Min Robot Analysis Total 1 | . . 1 . Derelict Logs Recovered . | . . . . Drone Launches . | . . . . Drone Recoveries . | . . . . Exploration | -11 -10 -9 -9 ------------- Run | Yrd Mat Mat Min Turns Passed 1503 | 65 695 582 161 Spaces Moved 632 | 36 284 228 84 Core 8 | 4 . . 4 Treads 624 | 32 284 228 80 Legs . | . . . . Wheels . | . . . . Hover . | . . . . Flight . | . . . . Fastest Speed 50 | 50 160 160 50 Average Speed 158 | 153 160 160 154 Slowest Speed 200 | 200 160 160 160 Overloaded Moves . | . . . . Propulsion Burnouts . | . . . . Robots Hopped . | . . . . Cave-ins Triggered . | . . . . Exploration Rate (%) 29 | 5 57 29 27 Regions Visited 3 Branch Regions 1 Pre-discovered Areas . | . . . . Known Exits Taken . | . . . . Unknown Exits Taken 3 | 1 1 1 . Scrap Searched . | . . . . Spaces Dug . | . . . . Terrain Destroyed . | . . . . Melee . | . . . . Projectile . | . . . . AOE . | . . . . Terrain Rammed . | . . . . Walls Destroyed . | . . . . Machines Disabled . | . . . . Actions | -11 -10 -9 -9 --------- Run | Yrd Mat Mat Min Total 907 | 43 429 332 103 Wait 76 | 2 55 7 12 Move 629 | 35 283 227 84 Hop . | . . . . Pick Up 30 | . 18 11 1 Fast Attach 8 | 6 1 1 . Attach 10 | . 3 7 . Detach . | . . . . Swap 14 | . 6 8 . Drop 16 | . 6 10 . Fire 123 | . 57 60 6 Melee . | . . . . Ram . | . . . . Kick . | . . . . Crush 1 | . . 1 . Escape Stasis . | . . . . Rewire . | . . . . Trap . | . . . . Miscellaneous . | . . . . Route ------- -11/Scrapyard -10/Materials (discovered 3 exits: *Mat x3) -9/Materials (discovered 3 exits: [*Mat] / [*Min x2]) -9/Mines (discovered 1 exit: [*Mat]) History --------- Turn | Location | Event 18 | -11/Scrapyard | Discovered new exit (range 16) 66 | -11/Scrapyard | Entered Materials 175 | -10/Materials | Discovered new exit (range 10) 303 | -10/Materials | Build established: Mutant 538 | -10/Materials | Core integrity fell below 50% 646 | -10/Materials | Discovered new exit (range 9) 708 | -10/Materials | Discovered new exit (range 16) 761 | -10/Materials | Entered another Materials area 761 | -9/Materials | Evolved 2 slots: Utility x2 833 | -9/Materials | Core integrity fell below 50% 859 | -9/Materials | Destroyed 7 combat bots 929 | -9/Materials | Discovered new exit (range 15) 1002 | -9/Materials | Build established: Scavenger-Mutant 1128 | -9/Materials | Discovered new exit (range 15) 1316 | -9/Materials | Discovered new exit (range 13) 1343 | -9/Materials | Entered Mines 1370 | -9/Mines | Discovered new exit (range 10) 1470 | -9/Mines | Assembled infested the area 1499 | -9/Mines | Core integrity fell below 20% 1502 | -9/Mines | Released all parts (8) 1504 | -9/Mines | Destroyed by D-53 Grenadier with Mini Grenade Launcher Last Messages --------------- K-01 Serf collects debris. T-07 Excavator is excavating. U-05 Engineer lays Concrete. K-01 Serf collects debris. KQI6B3XFD:4 PFI96 Lgt. Treads destroyed. The unstable cave ceiling collapses. Released Med. Storage Unit. Released Imp. Assault Rifle. Released Targeting Computer. Released Lgt. Treads. Released Targeting Computer. Released Transport Network Coupler. Released Lgt. Ion Engine. Released Adv. Beam Cannon. Map ----- +----------------------------------------------------+ | | | | | | | | | | | ?????????????????????????????????????????????????? | | ?????????????????????????????????????????????????? | | ?????????????????????????????????????????????????? | | ?????????????????????????????????????????????????? | | ?????????????????????????????????????????????????? | | ??????#########??????????????????????????????????? | | ??????# #???######?????????????????????????? | | ??????# """ #??## ##????????????????????????? | | ??????# """ #??# #????????????????????????? | | ??????# """ #??# ##???????########?????????? | | ??????# #??# ##???????# ??????????? | | ??##### """ #??## #######?# ????????????? | | ??# %% """ #???# ### #?????????????? | | ??# ### """ #???# ## #?????????????? | | ??# #?# #???# # #?????????????? | | ??# #?#########???# [= # #?????????????? | | ??# #?????????????# dt ]![ #?????????????? | | ??# #####?????????# %d |] #?????????????? | | ??# ## ##????????## ####?????????????? | | ??# # ##????????## ## #?????????????? | | ??# ##????????# @ #????????????? | | ?# #????????## ## #????????????? | | ?# < """ #?????????# #????????????? | | ?## """ #####????## ### ##????????????? | | ??## """ #????# ##??###?????????????? | | ???## #### #????# t ##??????????????????? | | ????# ###??# #???## #??????????????????? | | ????## ##????# #?### a#??????????????????? | | ?????###?????# ### #?????????????????? | | ??????????#### ## ## #????????????????? | | ??????????# #### a #????????????????? | | ??????????# ##???# #????????????????? | | ??????????## #### ##?????# a ???????????????? | | ???????????###???####??????? ??????????????? | | ????????????????????????????# ###???????????????? | | ?????????????????????????????###?????????????????? | | ?????????????????????????????????????????????????? | | ?????????????????????????????????????????????????? | | ?????????????????????????????????????????????????? | | ?????????????????????????????????????????????????? | | ?????????????????????????????????????????????????? | | ?????????????????????????????????????????????????? | | ?????????????????????????????????????????????????? | | ?????????????????????????????????????????????????? | | ?????????????????????????????????????????????????? | +----------------------------------------------------+ Best States ------------- Heat Dissipation 28 Energy Generation 10 Energy Capacity 250 Matter Stores 300 Matter Capacity 300 Sight Range 16 Terrain Scan Density 10 Evasion (%) 40 Targeting Accuracy 10 Recoil Reduction 2 Item Schematics ----------------- None Robot Schematics ------------------ None Fabricated ------------ Nothing Alien Tech Used ----------------- None Achievements -------------- None Challenges ------------ None Game ------ Seed ControlPhasingPendant Manual? 0 Play Time 00:17:18 Cumulative 12.4 hours Start 2025.03.23 @ 15:09:34 End 2025.03.23 @ 15:25:10 Sessions 1 Manual Loads 0 Difficulty Rogue Special Mode None Game No. 17 Rogue 17 Adventurer 0 Explorer 0 Win Type - Total 0 Types 0/0/0/0/0/0/0/0/0 Lore% 13 Gallery% 22 Achievement% 18 Wizard Run 0 Options --------- Layout 1 ASCII 0 Keyboard 0 Movement Mouse Keybinds 0 Fullscreen 1 Font 24/Smallcaps Map View 50x35 Zoom Use 0% Tactical HUD 0 Map Filters NONE Filters NONE Steam 1 RUN: 2cbc6d2a-fad8-483c-a02f-0f19d05e4932